bitfinex-derivatives/quotes_SOLF0:USTF0_20230404
["timestamp","ask_amount","ask_price","bid_price","bid_amount"]
[1680636788871,56.74462578,20.91,20.903,23.98]
[1680636789065,56.74462578,20.909,20.903,23.98]
[1680636789271,23.94,20.914,20.903,23.98]
[1680636789468,56.74597831,20.913,20.903,23.98]
[1680636789670,56.74597831,20.912,20.903,23.98]
[1680636789870,56.74597831,20.911,20.903,23.98]
[1680636790073,56.74597831,20.91,20.903,23.98]
[1680636790272,56.74597831,20.909,20.903,23.98]
[1680636790473,23.94,20.914,20.903,23.98]
[1680636790675,56.74569754,20.913,20.903,23.98]
[1680636790872,56.74569754,20.912,20.903,23.98]
[1680636791073,56.74569754,20.911,20.903,23.98]
[1680636791273,56.74569754,20.91,20.903,23.98]
[1680636791472,56.74569754,20.909,20.906,23.98]
[1680636791778,0.06461258,20.915,20.906,23.98]
[1680636792075,0.06461258,20.915,20.908,23.98]
[1680636792273,56.80590453,20.915,20.909,10.0]
[1680636792474,56.74129195,20.914,20.909,10.0]
[1680636792777,56.74129195,20.913,20.908,23.98]
[1680636793073,56.74129195,20.912,20.908,23.98]
[1680636793274,56.74129195,20.911,20.908,23.98]
[1680636793576,24.04619429,20.919,20.908,23.98]
[1680636793873,56.74334028,20.918,20.908,23.98]
[1680636794076,56.74334028,20.917,20.908,23.98]
[1680636794273,56.74334028,20.916,20.908,23.98]
[1680636794470,56.74334028,20.915,20.908,23.98]
[1680636794673,56.74334028,20.914,20.908,23.98]
[1680636794977,56.74334028,20.913,20.908,23.98]
[1680636795178,56.74334028,20.912,20.908,23.98]
[1680636795375,54.98469481,20.911,20.904,24.05026299]
[1680636795575,0.06856938,20.915,20.904,24.05026299]
[1680636795780,1.8272171,20.915,20.904,24.05026299]
[1680636795979,65.00995973,20.914,20.904,24.05026299]
[1680636796176,56.76860745,20.913,20.904,24.05026299]
[1680636796371,56.76860745,20.912,20.904,24.05026299]
[1680636796678,56.76860745,20.911,20.904,24.05026299]
[1680636796880,55.00995973,20.91,20.904,24.05026299]
[1680636797180,55.7023,20.914,20.904,23.98]
[1680636797181,55.00995973,20.909,20.904,23.98]
[1680636797375,55.00995973,20.913,20.904,23.98]
[1680636797578,1.75865765,20.912,20.904,23.98]
[1680636797880,55.00995973,20.911,20.904,23.98]
[1680636798378,55.00995973,20.913,20.904,23.98]
[1680636798571,56.76857968,20.912,20.904,23.98]
[1680636798768,55.00995973,20.911,20.904,23.98]
[1680636798977,55.00995973,20.91,20.904,23.98]
[1680636799171,55.00995973,20.909,20.904,23.98]
[1680636799370,10.0,20.912,20.904,23.98]
[1680636799574,55.01250994,20.911,20.904,23.98]
[1680636799875,55.01250994,20.91,20.904,23.98]
[1680636800070,55.01250994,20.913,20.904,23.98]
[1680636800279,56.77113927,20.912,20.904,23.98]
[1680636800476,55.01250994,20.911,20.904,23.98]
[1680636800779,55.01250994,20.91,20.904,23.98]
[1680636800979,55.01250994,20.909,20.904,23.98]
[1680636801177,45.7023,20.914,20.904,23.98]
[1680636801378,56.77051386,20.913,20.904,23.98]
[1680636801675,56.77051386,20.912,20.904,23.98]
[1680636801973,56.77051386,20.911,20.902,23.98]
[1680636802178,55.01188443,20.91,20.903,10.0]
[1680636802379,55.01188443,20.909,20.903,10.0]
[1680636802572,23.94,20.913,20.903,10.0]
[1680636802775,56.77058225,20.912,20.902,23.98]
[1680636803074,55.01195089,20.911,20.902,23.98]
[1680636803280,55.01195089,20.91,20.902,23.98]
[1680636803477,55.01195089,20.909,20.902,23.98]
[1680636803678,23.94,20.913,20.902,23.98]
[1680636803879,56.77087707,20.912,20.902,23.98]
[1680636804180,55.01225021,20.911,20.902,23.98]
[1680636804380,23.94,20.913,20.902,23.98]
[1680636804681,56.7705958,20.912,20.902,23.98]
[1680636804870,55.01196597,20.911,20.902,23.98]
[1680636805075,23.94,20.913,20.902,23.98]
[1680636805272,56.77830319,20.912,20.902,23.98]
[1680636805480,55.01969455,20.911,20.902,23.98]
[1680636805782,23.94,20.913,20.902,23.98]
[1680636806081,56.77215224,20.912,20.902,23.98]
[1680636806282,55.01354211,20.911,20.902,23.98]
[1680636806479,23.94,20.913,20.902,23.98]
[1680636806780,56.77190242,20.912,20.902,23.98]
[1680636806973,23.94,20.913,20.902,23.98]
[1680636807179,56.7722215,20.912,20.902,23.98]
[1680636807378,23.94,20.913,20.902,23.98]
[1680636807579,56.77928647,20.912,20.902,23.98]
[1680636807778,23.94,20.913,20.902,23.98]
[1680636807977,56.77972855,20.912,20.902,23.98]
[1680636808179,55.02103926,20.911,20.902,23.98]
[1680636808379,23.94,20.913,20.902,23.98]
[1680636808579,56.77854719,20.912,20.902,23.98]
[1680636808773,10.0,20.911,20.902,23.98]
[1680636809282,10.0,20.911,20.9,14.73305464]
[1680636809283,23.98,20.91,20.9,14.73305464]
[1680636811485,23.98,20.913,20.902,23.98]
[1680636811681,56.77901751,20.912,20.903,10.0]
[1680636811881,23.98,20.913,20.903,10.0]
[1680636812082,56.77921202,20.912,20.902,23.98]
[1680636812386,23.98,20.913,20.902,23.98]
[1680636812587,56.77772243,20.912,20.902,23.98]
[1680636812885,23.98,20.913,20.902,23.98]
[1680636813084,56.77055802,20.912,20.902,23.98]
[1680636813279,23.98,20.913,20.902,23.98]
[1680636813478,56.77044726,20.912,20.902,23.98]
[1680636813686,23.98,20.913,20.902,23.98]
[1680636813884,56.77019572,20.912,20.902,23.98]
[1680636814084,23.98,20.913,20.902,23.98]
[1680636814386,56.77023944,20.912,20.902,23.98]
[1680636814585,10.0,20.911,20.902,23.98]
[1680636815081,23.98,20.913,20.902,23.98]
[1680636815285,55.01119914,20.912,20.902,23.98]
[1680636815787,23.98,20.913,20.902,23.98]
[1680636816890,55.01052454,20.912,20.902,23.98]
[1680636832099,1.75882402,20.911,20.902,23.98]
[1680636832298,23.94,20.905,20.9,0.0600302]
[1680636832603,10.0,20.904,20.895,0.06756366]
[1680636833201,23.94,20.905,20.895,0.06756366]
[1680636834002,47.9629,20.904,20.895,0.06756366]
[1680636835806,55.00508963,20.903,20.895,0.06756366]
[1680636842510,55.00508963,20.903,20.896,23.98]
[1680636842711,55.00508963,20.903,20.897,10.0]
[1680636843111,55.00508963,20.903,20.896,23.98]
[1680636845014,0.0706925,20.91,20.902,23.98]
[1680636854121,0.0706925,20.91,20.9,23.98]
[1680636854522,55.08505791,20.91,20.9,23.98]
[1680636860228,55.08505791,20.91,20.9,38.34300592]
[1680636862029,55.08505791,20.91,20.9,23.98]
[1680636862428,23.94,20.907,20.895,24.04756366]
[1680636870632,45.538,20.909,20.899,23.98]
[1680636870835,55.02021864,20.908,20.899,23.98]
[1680636882747,45.538,20.909,20.899,23.98]
[1680636882946,45.538,20.909,20.901,23.98]
[1680636883145,55.03656851,20.908,20.901,23.98]
[1680636883955,45.538,20.909,20.901,23.98]
[1680636885155,55.03652245,20.908,20.901,23.98]
[1680636886252,55.03652245,20.908,20.898,23.98]
[1680636886652,23.98,20.905,20.895,0.06756366]
[1680636887855,23.86,20.903,20.895,0.06756366]
[1680636888957,55.02615182,20.902,20.895,0.06756366]
[1680636889655,23.86,20.903,20.895,0.06756366]
[1680636890459,23.98,20.899,20.895,0.06756366]
[1680636890657,10.0,20.898,20.89,45.16620255]
[1680636891156,23.98,20.899,20.89,45.16620255]
[1680636903971,0.0610553,20.901,20.891,23.98]
[1680636904169,0.0610553,20.901,20.892,10.0]
[1680636905571,0.0610553,20.901,20.891,23.98]
[1680636917084,0.0610553,20.901,20.895,23.98]
[1680636917284,55.04553056,20.905,20.895,23.98]
[1680636921991,23.98,20.904,20.893,23.98]
[1680636922289,23.98,20.904,20.894,10.0]
[1680636922791,23.98,20.904,20.893,23.98]
[1680636923895,0.07029634,20.905,20.899,23.98]
[1680636924096,0.06230435,20.909,20.903,23.98]
[1680636924301,54.98124311,20.912,20.905,23.98]
[1680636924491,0.06571241,20.913,20.905,23.98]
[1680636925192,56.80538933,20.913,20.905,23.98]
[1680636925389,0.06571241,20.913,20.905,23.98]
[1680636926288,55.04050485,20.913,20.905,23.98]
[1680636926486,0.06571241,20.913,20.905,23.98]
[1680636927290,55.04090426,20.913,20.905,23.98]
[1680636927491,0.06571241,20.913,20.905,23.98]
[1680636928395,55.04107291,20.913,20.905,23.98]
[1680636928605,0.06571241,20.913,20.905,23.98]
[1680636929397,55.04063763,20.913,20.905,23.98]
[1680636929597,0.06571241,20.913,20.905,23.98]
[1680636930390,55.04104693,20.913,20.905,23.98]
[1680636930598,0.06571241,20.913,20.905,23.98]
[1680636931497,55.04121686,20.913,20.905,23.98]
[1680636931698,0.06571241,20.913,20.905,23.98]
[1680636932499,55.04129669,20.913,20.905,23.98]
[1680636932699,0.06571241,20.913,20.905,23.98]
[1680636934394,55.04129669,20.913,20.905,23.98]
[1680636934597,0.06571241,20.913,20.905,23.98]
[1680636935498,55.0412145,20.913,20.905,23.98]
[1680636935693,0.06571241,20.913,20.905,23.98]
[1680636936603,55.04126665,20.913,20.905,23.98]
[1680636936901,0.06571241,20.913,20.905,23.98]
[1680636939308,0.06571241,20.913,20.903,23.98]
[1680636939602,55.04417047,20.913,20.903,23.98]
[1680636940502,0.06571241,20.913,20.903,23.98]
[1680636942007,23.86,20.912,20.901,44.00479598]
[1680636948606,0.06571241,20.913,20.909,23.98]
[1680636948806,56.79516077,20.918,20.91,10.0]
[1680636949012,56.72695226,20.917,20.91,10.0]
[1680636949309,56.72695226,20.916,20.91,10.0]
[1680636949512,56.72695226,20.915,20.909,23.98]
[1680636949714,0.06820851,20.918,20.909,23.98]
[1680636950205,56.78926098,20.918,20.909,23.98]
[1680636950406,56.72105247,20.917,20.909,23.98]
[1680636950708,56.72105247,20.916,20.909,23.98]
[1680636950910,56.72105247,20.915,20.909,23.98]
[1680636951109,0.06820851,20.918,20.909,23.98]
[1680636951513,56.78917645,20.918,20.909,23.98]
[1680636951710,56.72096794,20.917,20.909,23.98]
[1680636952013,56.72096794,20.916,20.907,24.04104099]
[1680636952211,56.72096794,20.915,20.907,24.04104099]
[1680636952413,24.04820851,20.918,20.907,24.04104099]
[1680636952612,56.72156285,20.917,20.907,24.04104099]
[1680636952813,56.72156285,20.916,20.907,24.04104099]
[1680636953111,56.72156285,20.915,20.907,24.04104099]
[1680636953310,24.04820851,20.918,20.907,24.04104099]
[1680636953511,56.72163714,20.917,20.907,24.04104099]
[1680636953706,66.72163714,20.916,20.907,24.04104099]
[1680636953904,56.72163714,20.915,20.907,24.04104099]
[1680636954106,24.04820851,20.918,20.907,24.04104099]
[1680636954312,56.72095058,20.917,20.907,24.04104099]
[1680636954514,56.72095058,20.916,20.907,24.04104099]
[1680636954708,56.72095058,20.915,20.907,24.04104099]
[1680636954909,24.04820851,20.918,20.907,24.04104099]
[1680636955105,56.72106428,20.917,20.907,24.04104099]
[1680636955306,56.72106428,20.916,20.907,24.04104099]
[1680636955512,56.72106428,20.915,20.907,24.04104099]
[1680636955712,24.04820851,20.918,20.907,24.04104099]
[1680636955912,56.72120512,20.917,20.907,24.04104099]
[1680636956111,66.72120512,20.916,20.907,24.04104099]
[1680636956413,56.72120512,20.915,20.907,24.04104099]
[1680636956611,24.04820851,20.918,20.907,24.04104099]
[1680636956815,56.72114755,20.917,20.907,24.04104099]
[1680636957013,66.72114755,20.916,20.907,24.04104099]
[1680636957214,56.72114755,20.915,20.907,24.04104099]
[1680636957515,24.04820851,20.918,20.907,24.04104099]
[1680636957815,56.72113771,20.917,20.907,24.04104099]
[1680636958015,66.72113771,20.916,20.907,24.04104099]
[1680636958213,56.72113771,20.915,20.907,24.04104099]
[1680636958414,10.0,20.916,20.907,24.04104099]
[1680636958614,56.69878199,20.915,20.907,24.04104099]
[1680636958914,24.04820851,20.918,20.907,24.04104099]
[1680636959114,10.0,20.916,20.907,24.04104099]
[1680636959317,56.69915841,20.915,20.907,24.04104099]
[1680636959511,24.04820851,20.918,20.907,24.04104099]
[1680636959710,56.69947141,20.917,20.907,24.04104099]
[1680636959913,66.69947141,20.916,20.907,24.04104099]
[1680636960113,56.69947141,20.915,20.907,24.04104099]
[1680636960417,24.04820851,20.918,20.907,24.04104099]
[1680636960612,10.0,20.916,20.907,24.04104099]
[1680636960918,56.69970388,20.915,20.907,24.04104099]
[1680636961118,10.0,20.916,20.907,24.04104099]
[1680636961314,56.69996224,20.915,20.907,24.04104099]
[1680636961515,24.04820851,20.918,20.907,24.04104099]
[1680636961715,56.70009799,20.917,20.907,24.04104099]
[1680636961921,56.70009799,20.916,20.907,24.04104099]
[1680636962215,54.94185512,20.915,20.907,24.04104099]
[1680636962419,24.04820851,20.918,20.907,24.04104099]
[1680636962619,56.69620524,20.917,20.907,24.04104099]
[1680636962819,56.69620524,20.916,20.907,24.04104099]
[1680636963020,56.69620524,20.915,20.907,24.04104099]
[1680636963222,24.04820851,20.918,20.907,24.04104099]
[1680636963414,56.69841916,20.917,20.907,24.04104099]
[1680636963718,23.86,20.914,20.907,0.06104099]
[1680636963922,10.0,20.913,20.907,0.06104099]
[1680636964223,10.0,20.913,20.903,24.04371047]
[1680636964419,23.86,20.914,20.903,24.04371047]
[1680636970628,23.98,20.912,20.903,0.06371047]
[1680636970821,10.0,20.911,20.903,0.06371047]
[1680636971225,23.98,20.912,20.903,0.06371047]
[1680636973128,10.0,20.911,20.903,0.06371047]
[1680636973626,23.94,20.909,20.903,0.00371047]
[1680636973831,23.98,20.905,20.894,23.98]
[1680636974224,10.0,20.904,20.894,23.98]
[1680636974834,23.98,20.905,20.894,23.98]
[1680636986635,23.98,20.905,20.893,46.5438]
[1680636986836,23.98,20.898,20.893,46.5438]
[1680636987036,23.98,20.894,20.873,123.94]
[1680636987239,23.98,20.894,20.878,43.6917]
[1680636987436,23.98,20.894,20.883,23.98]
[1680636989835,23.98,20.892,20.881,24.04977722]
[1680636997250,23.94,20.895,20.884,23.98]
[1680637013152,46.6801,20.902,20.894,23.98]
[1680637013346,66.2395767,20.93,20.901,23.98]
[1680637013551,23.98,20.918,20.901,23.98]
[1680637013755,23.98,20.916,20.905,23.98]
[1680637013948,1.75819996,20.915,20.905,23.98]
[1680637022158,1.75819996,20.915,20.907,23.98]
[1680637022357,1.75819996,20.914,20.907,23.98]
[1680637022554,10.0,20.916,20.907,23.98]
[1680637022750,1.75818651,20.915,20.907,23.98]
[1680637023158,1.75818651,20.914,20.907,23.98]
[1680637023460,10.0,20.916,20.907,23.98]
[1680637023653,1.75818742,20.915,20.907,23.98]
[1680637024353,1.75818742,20.914,20.907,23.98]
[1680637024555,44.53453531,20.917,20.907,23.98]
[1680637024755,1.75818872,20.916,20.907,23.98]
[1680637025857,1.75818872,20.915,20.907,23.98]
[1680637026059,1.75818872,20.914,20.907,23.98]
[1680637026359,0.06353531,20.917,20.907,23.98]
[1680637026758,56.78369862,20.917,20.907,23.98]
[1680637026952,56.72016331,20.916,20.907,23.98]
[1680637027158,1.7581878,20.915,20.907,23.98]
[1680637027452,1.7581878,20.914,20.907,23.98]
[1680637027658,0.06353531,20.917,20.907,23.98]
[1680637027859,1.8217222,20.917,20.907,23.98]
[1680637028159,1.75818689,20.916,20.907,23.98]
[1680637028360,1.75818689,20.915,20.907,23.98]
[1680637028660,1.75818689,20.914,20.907,23.98]
[1680637028855,0.06353531,20.917,20.907,23.98]
[1680637029156,1.82171999,20.917,20.907,23.98]
[1680637029557,1.75818468,20.916,20.907,23.98]
[1680637029757,1.75818468,20.915,20.907,23.98]
[1680637029957,0.06353531,20.917,20.907,23.98]
[1680637030257,1.82172099,20.917,20.907,23.98]
[1680637030759,1.75818568,20.916,20.907,23.98]
[1680637031062,1.75818568,20.915,20.907,23.98]
[1680637031362,0.06353531,20.917,20.907,23.98]
[1680637031660,1.82172079,20.917,20.907,23.98]
[1680637031862,1.75818548,20.916,20.907,23.98]
[1680637032159,1.75818548,20.915,20.907,23.98]
[1680637032365,0.06353531,20.917,20.907,23.98]
[1680637035462,10.06353531,20.917,20.907,23.98]
[1680637035658,1.75817069,20.916,20.907,23.98]
[1680637036464,23.86,20.915,20.904,70.0588]
[1680637044475,1.75819886,20.914,20.904,70.0588]
[1680637051978,23.86,20.915,20.904,70.0588]
[1680637055779,0.06353531,20.917,20.907,23.98]
[1680637055978,1.82170642,20.917,20.907,23.98]
[1680637071991,1.82170642,20.917,20.909,23.98]
[1680637072292,1.75817111,20.916,20.909,23.98]
[1680637072493,0.06353531,20.917,20.909,23.98]
[1680637072688,56.75599247,20.917,20.909,23.98]
[1680637072990,1.75814915,20.916,20.909,23.98]
[1680637073191,0.06353531,20.917,20.909,23.98]
[1680637073585,56.75587768,20.917,20.909,23.98]
[1680637073790,1.75815116,20.916,20.909,23.98]
[1680637073985,0.06353531,20.917,20.909,23.98]
[1680637074187,1.82169486,20.917,20.909,23.98]
[1680637074389,1.75815955,20.916,20.909,23.98]
[1680637074693,10.0,20.915,20.909,23.98]
[1680637074893,0.06353531,20.917,20.909,23.98]
[1680637075194,56.75499463,20.917,20.909,23.98]
[1680637075390,56.69145932,20.916,20.909,23.98]
[1680637075587,10.0,20.915,20.909,23.98]
[1680637076095,0.06353531,20.917,20.909,23.98]
[1680637076388,56.75511881,20.917,20.909,23.98]
[1680637076592,80.6715835,20.916,20.905,23.98]
[1680637076795,10.0,20.915,20.905,23.98]
[1680637077497,54.93097122,20.914,20.905,23.98]
[1680637078699,23.98,20.916,20.905,23.98]
[1680637078899,54.9314077,20.915,20.905,23.98]
[1680637082895,23.98,20.913,20.904,46.0788]
[1680637083097,54.9314077,20.912,20.904,46.0788]
[1680637083400,10.0,20.911,20.904,46.0788]
[1680637083601,54.9314077,20.91,20.903,0.06557717]
[1680637084098,54.9314077,20.909,20.903,0.06557717]
[1680637084302,54.9314077,20.908,20.902,23.98]
[1680637084498,0.06769968,20.912,20.902,23.98]
[1680637084699,10.06769968,20.912,20.902,23.98]
[1680637084900,54.93585659,20.911,20.902,23.98]
[1680637085102,54.93585659,20.91,20.902,23.98]
[1680637085304,54.93585659,20.909,20.902,23.98]
[1680637085502,54.93585659,20.908,20.902,23.98]
[1680637085804,0.06769968,20.912,20.902,23.98]
[1680637086004,0.06769968,20.912,20.902,69.9279]
[1680637086302,55.00333362,20.912,20.902,69.9279]
[1680637092403,55.00333362,20.912,20.902,23.98]
[1680637092608,23.94,20.909,20.899,0.0653846]
[1680637092804,64.93563394,20.908,20.899,0.0653846]
[1680637093002,54.93563394,20.907,20.899,0.0653846]
[1680637093607,54.93563394,20.906,20.899,0.0653846]
[1680637093809,54.93563394,20.908,20.899,0.0653846]
[1680637094008,64.95608576,20.907,20.899,0.0653846]
[1680637094208,54.95608576,20.906,20.899,0.0653846]
[1680637094411,54.95608576,20.908,20.899,0.0653846]
[1680637094607,54.96335657,20.907,20.899,0.0653846]
[1680637094908,23.94,20.909,20.899,0.0653846]
[1680637095117,10.0,20.907,20.899,0.0653846]
[1680637095410,23.94,20.909,20.899,0.0653846]
[1680637095608,54.95343374,20.908,20.899,0.0653846]
[1680637098110,23.94,20.909,20.899,0.0653846]
[1680637098310,54.943947,20.908,20.899,0.0653846]
[1680637102118,54.943947,20.908,20.901,23.98]
[1680637102316,23.92769968,20.912,20.901,23.98]
[1680637102515,54.9678466,20.911,20.901,23.98]
[1680637102717,10.0,20.91,20.901,23.98]
[1680637103018,54.9678466,20.909,20.901,23.98]
[1680637103418,54.9678466,20.908,20.901,23.98]
[1680637103618,23.92769968,20.912,20.901,23.98]
[1680637103919,54.96831716,20.911,20.901,23.98]
[1680637104115,10.0,20.91,20.901,23.98]
[1680637104316,54.96831716,20.909,20.901,23.98]
[1680637104515,10.0,20.908,20.901,23.98]
[1680637104716,54.96831716,20.907,20.901,23.98]
[1680637105421,23.92769968,20.912,20.901,23.98]
[1680637105621,54.96906896,20.911,20.901,23.98]
[1680637105816,10.0,20.91,20.901,23.98]
[1680637106017,54.96906896,20.909,20.901,23.98]
[1680637106217,10.0,20.908,20.901,23.98]
[1680637106421,54.96906896,20.907,20.901,23.98]
[1680637107021,10.0,20.91,20.901,23.98]
[1680637107221,54.97191159,20.909,20.901,23.98]
[1680637107422,10.0,20.908,20.901,23.98]
[1680637107929,54.97191159,20.907,20.901,23.98]
[1680637108125,10.0,20.91,20.901,23.98]
[1680637108126,54.97191159,20.909,20.901,23.98]
[1680637108319,64.97185821,20.908,20.901,23.98]
[1680637108520,64.97185821,20.907,20.901,23.98]
[1680637108819,10.0,20.908,20.901,23.98]
[1680637109020,54.97163304,20.907,20.901,23.98]
[1680637109220,10.0,20.908,20.901,23.98]
[1680637109413,10.0,20.906,20.901,23.98]
[1680637109823,10.0,20.91,20.901,23.98]
[1680637110018,10.0,20.908,20.901,23.98]
[1680637110420,10.0,20.91,20.901,23.98]
[1680637110621,10.0,20.908,20.901,23.98]
[1680637111016,10.0,20.911,20.901,23.98]
[1680637111323,54.968989,20.91,20.901,23.98]
[1680637111524,10.0,20.909,20.901,23.98]
[1680637111723,54.968989,20.908,20.901,23.98]
[1680637112224,54.968989,20.908,20.901,19.18]
[1680637122532,54.968989,20.908,20.902,19.18]
[1680637132141,19.18,20.908,20.901,19.18]
[1680637133042,19.02,20.911,20.904,19.18]
[1680637133245,54.96099252,20.91,20.904,19.18]
[1680637142153,54.96099252,20.91,20.905,19.18]
[1680637142354,54.96099252,20.909,20.905,19.18]
[1680637142651,54.96099252,20.908,20.905,19.18]
[1680637142850,0.06769968,20.912,20.905,19.18]
[1680637143149,55.03857289,20.912,20.905,19.18]
[1680637152059,55.03857289,20.912,20.907,19.18]
[1680637152359,54.97087321,20.911,20.907,19.18]
[1680637152560,54.97087321,20.913,20.907,19.18]
[1680637152760,54.97087321,20.912,20.907,19.18]
[1680637153059,54.97087321,20.911,20.907,19.18]
[1680637153260,54.97087321,20.91,20.907,19.18]
[1680637153460,19.18,20.914,20.907,19.18]
[1680637153759,54.96796349,20.913,20.907,19.18]
[1680637156863,19.02,20.912,20.904,19.18]
[1680637157062,64.96796349,20.911,20.904,19.18]
[1680637157259,54.96796349,20.91,20.904,19.18]
[1680637158061,54.96796349,20.909,20.904,19.18]
[1680637158264,54.96796349,20.911,20.904,19.18]
[1680637158564,19.02,20.912,20.904,19.18]
[1680637158565,54.96796349,20.91,20.904,19.18]
[1680637158764,54.96796349,20.909,20.904,19.18]
[1680637158967,54.96796349,20.908,20.904,19.18]
[1680637159264,19.02,20.912,20.904,19.18]
[1680637159563,55.01173727,20.911,20.904,19.18]
[1680637160665,10.0,20.91,20.904,19.18]
[1680637160864,55.01173727,20.909,20.904,19.18]
[1680637161365,55.01173727,20.908,20.904,19.18]
[1680637161563,19.02,20.912,20.904,19.18]
[1680637161763,55.01115906,20.911,20.904,19.18]
[1680637169463,55.01115906,20.911,20.899,0.0653846]
[1680637169464,55.01115906,20.911,20.909,19.18]
[1680637169663,0.06991625,20.917,20.909,19.18]
[1680637169866,19.08991625,20.917,20.909,19.18]
[1680637170067,37.42847818,20.916,20.909,19.18]
[1680637170269,35.67036765,20.915,20.909,19.18]
[1680637170467,35.67036765,20.914,20.909,19.18]
[1680637170768,35.67036765,20.913,20.909,19.18]
[1680637170967,35.67036765,20.912,20.909,19.18]
[1680637171169,35.67036765,20.911,20.909,19.18]
[1680637171369,35.67036765,20.916,20.909,19.18]
[1680637172270,35.67036765,20.916,20.91,19.18]
[1680637172470,35.67036765,20.915,20.91,19.18]
[1680637172771,35.67036765,20.914,20.91,19.18]
[1680637173070,35.67036765,20.913,20.91,19.18]
[1680637173271,35.67036765,20.912,20.91,19.18]
[1680637173470,35.67036765,20.911,20.91,19.18]
[1680637173769,0.06991625,20.917,20.91,19.18]
[1680637173965,1.82802536,20.917,20.91,19.18]
[1680637174172,35.6657989,20.916,20.91,19.18]
[1680637174675,35.6657989,20.915,20.91,19.18]
[1680637174872,35.6657989,20.914,20.91,19.18]
[1680637175071,35.6657989,20.913,20.91,19.18]
[1680637175372,0.06991625,20.917,20.91,19.18]
[1680637176269,35.73023459,20.917,20.91,19.18]
[1680637180780,35.73023459,20.917,20.911,19.18]
[1680637180977,35.66031834,20.917,20.911,19.18]
[1680637182078,35.66031834,20.917,20.912,19.18]
[1680637182279,35.66031834,20.916,20.912,19.18]
[1680637182576,35.66031834,20.915,20.912,19.18]
[1680637182777,35.66031834,20.914,20.912,19.18]
[1680637182977,33.56743101,20.919,20.912,19.18]
[1680637183171,37.41797226,20.918,20.912,19.18]
[1680637183369,35.6600494,20.917,20.912,19.18]
[1680637183574,35.6600494,20.916,20.912,19.18]
[1680637183775,35.6600494,20.915,20.912,19.18]
[1680637184079,35.6600494,20.914,20.912,19.18]
[1680637184272,33.56743101,20.919,20.912,19.18]
[1680637184477,37.41845726,20.918,20.912,19.18]
[1680637184678,35.66053342,20.917,20.912,19.18]
[1680637184883,35.66053342,20.916,20.912,19.18]
[1680637185180,35.66053342,20.915,20.912,19.18]
[1680637185383,35.66053342,20.914,20.912,19.18]
[1680637185581,33.56743101,20.919,20.912,19.18]
[1680637185774,37.41831556,20.918,20.912,19.18]
[1680637185979,35.66039031,20.917,20.912,19.18]
[1680637186180,33.56743101,20.919,20.912,19.18]
[1680637186181,35.66039031,20.916,20.912,19.18]
[1680637186382,35.66039031,20.915,20.912,19.18]
[1680637186682,35.66039031,20.914,20.912,19.18]
[1680637186880,35.66039031,20.918,20.912,19.18]
[1680637187083,35.66041753,20.917,20.912,19.18]
[1680637187283,35.66041753,20.916,20.912,19.18]
[1680637187483,35.66041753,20.915,20.912,19.18]
[1680637187685,35.66041753,20.914,20.912,19.18]
[1680637187988,33.56743101,20.919,20.912,19.18]
[1680637188288,35.65143418,20.918,20.912,19.18]
[1680637190684,0.06384083,20.921,20.917,19.18]
[1680637190887,19.18,20.923,20.916,19.18]
[1680637191089,35.65256474,20.922,20.916,19.18]
[1680637191386,10.0,20.921,20.916,19.18]
[1680637191886,19.18,20.923,20.916,19.18]